[Event "*** Titled Tuesday Blitz"]
[Site "Chess.com"]
[Date "2018.11.06"]
[Round "4"]
[White "Zarikovs1999"]
[Black "Vuk2000"]
[Result "0-1"]
[WhiteElo "2343"]
[BlackElo "2683"]
[TimeControl "180+2"]
[EndTime "13:49:22 PST"]
[Termination "Vuk2000 won by resignation"]

1. Nf3 {[%clk 0:03:01.9]} 1... d5 {[%clk 0:03:01]} 2. c4 {[%clk 0:03:00.8]} 2...
d4 {[%clk 0:03:01.8]} 3. e3 {[%clk 0:02:59.3]} 3... c5 {[%clk 0:03:02.9]} 4.
exd4 {[%clk 0:02:55.6]} 4... cxd4 {[%clk 0:03:04.8]} 5. d3 {[%clk 0:02:56.9]}
5... Nc6 {[%clk 0:03:05.1]} 6. g3 {[%clk 0:02:58.4]} 6... e5 {[%clk 0:03:05.8]}
7. Bg2 {[%clk 0:02:59.8]} 7... Bd6 {[%clk 0:03:06]} 8. O-O {[%clk 0:03:00.9]}
8... Nge7 {[%clk 0:03:07.4]} 9. a3 {[%clk 0:03:01.1]} 9... a5 {[%clk 0:03:07.3]}
10. Re1 {[%clk 0:02:59]} 10... O-O {[%clk 0:03:07.6]} 11. Nbd2 {[%clk
0:03:00.2]} 11... Bg4 {[%clk 0:03:06.8]} 12. h3 {[%clk 0:02:59.9]} 12... Bh5
{[%clk 0:03:07.8]} 13. Ne4 {[%clk 0:03:00.3]} 13... Bc7 {[%clk 0:03:07.1]} 14.
Rb1 {[%clk 0:03:00.4]} 14... f5 {[%clk 0:02:56.8]} 15. Nc5 {[%clk 0:02:57.4]}
15... Qc8 {[%clk 0:02:57.9]} 16. b4 {[%clk 0:02:56.8]} 16... b6 {[%clk
0:02:59.1]} 17. Nb3 {[%clk 0:02:53.1]} 17... axb4 {[%clk 0:02:52.3]} 18. axb4
{[%clk 0:02:55]} 18... Nxb4 {[%clk 0:02:49.8]} 19. Nbxd4 {[%clk 0:02:55.3]}
19... Nbc6 {[%clk 0:02:27.9]} 20. Nxc6 {[%clk 0:02:38.8]} 20... Nxc6 {[%clk
0:02:29.8]} 21. Qb3 {[%clk 0:02:35]} 21... Kh8 {[%clk 0:02:21.2]} 22. Nh4 {[%clk
0:02:12.2]} 22... Nd4 {[%clk 0:02:13]} 23. Qb4 {[%clk 0:01:55.9]} 23... Nc2
{[%clk 0:02:13]} 24. Qd2 {[%clk 0:01:54.7]} 24... Nxe1 {[%clk 0:02:13.9]} 25.
Bxa8 {[%clk 0:01:54.2]} 25... Nxd3 {[%clk 0:02:14.1]} 26. Qxd3 {[%clk
0:01:51.5]} 26... Qxa8 {[%clk 0:02:14.7]} 27. Nxf5 {[%clk 0:01:51.7]} 27... Rd8
{[%clk 0:02:09.3]} 28. Qf1 {[%clk 0:01:31.3]} 28... Rd1 {[%clk 0:02:08.3]} 29.
Qxd1 {[%clk 0:01:32.5]} 29... Bxd1 {[%clk 0:02:10.2]} 30. Be3 {[%clk 0:01:33.2]}
30... Bc2 {[%clk 0:02:04.3]} 0-1

[Event "*** Titled Tuesday Blitz"]
[Site "Chess.com"]
[Date "2018.11.06"]
[Round "4"]
[White "vpantev"]
[Black "matiss90"]
[Result "0-1"]
[WhiteElo "2524"]
[BlackElo "2420"]
[TimeControl "180+2"]
[EndTime "13:49:48 PST"]
[Termination "matiss90 won by resignation"]

1. d4 {[%clk 0:03:01.9]} 1... Nf6 {[%clk 0:03:00.3]} 2. Nf3 {[%clk 0:03:02.4]}
2... g6 {[%clk 0:03:01.4]} 3. Bf4 {[%clk 0:03:02.2]} 3... Bg7 {[%clk 0:03:02.4]}
4. e3 {[%clk 0:03:03.4]} 4... O-O {[%clk 0:02:59.9]} 5. Be2 {[%clk 0:03:04.9]}
5... d6 {[%clk 0:03:00.6]} 6. O-O {[%clk 0:03:05.5]} 6... Nfd7 {[%clk
0:03:02.1]} 7. e4 {[%clk 0:03:06]} 7... e5 {[%clk 0:03:03.1]} 8. dxe5 {[%clk
0:03:06.8]} 8... dxe5 {[%clk 0:03:05]} 9. Be3 {[%clk 0:03:07.8]} 9... Qe7 {[%clk
0:02:56.4]} 10. Nc3 {[%clk 0:03:06.1]} 10... c6 {[%clk 0:02:57.5]} 11. a4 {[%clk
0:03:04.6]} 11... Nc5 {[%clk 0:02:58.2]} 12. Bg5 {[%clk 0:02:58.3]} 12... f6
{[%clk 0:02:50.2]} 13. Be3 {[%clk 0:02:55.7]} 13... Ne6 {[%clk 0:02:51.2]} 14.
Bc4 {[%clk 0:02:56.8]} 14... Kh8 {[%clk 0:02:51.9]} 15. a5 {[%clk 0:02:52.3]}
15... Nf4 {[%clk 0:02:52]} 16. Qc1 {[%clk 0:02:47.9]} 16... g5 {[%clk
0:02:49.4]} 17. Bxf4 {[%clk 0:02:45.8]} 17... exf4 {[%clk 0:02:46.8]} 18. Rd1
{[%clk 0:02:32.2]} 18... Nd7 {[%clk 0:02:46.2]} 19. Qd2 {[%clk 0:02:31.2]} 19...
g4 {[%clk 0:02:41.8]} 20. Nd4 {[%clk 0:02:28.2]} 20... Ne5 {[%clk 0:02:42.7]}
21. Bf1 {[%clk 0:02:28.5]} 21... Bh6 {[%clk 0:02:34.2]} 22. Nf5 {[%clk 0:02:29]}
22... Bxf5 {[%clk 0:02:34.6]} 23. exf5 {[%clk 0:02:29.7]} 23... Qg7 {[%clk
0:02:33.3]} 24. Ne4 {[%clk 0:02:26.7]} 24... g3 {[%clk 0:02:08.1]} 25. f3 {[%clk
0:02:21.6]} 25... gxh2+ {[%clk 0:01:29.7]} 26. Kxh2 {[%clk 0:02:22.1]} 26... Rg8
{[%clk 0:01:27.6]} 27. Qf2 {[%clk 0:02:20.2]} 27... Bg5 {[%clk 0:01:24]} 28.
Nxg5 {[%clk 0:01:56.1]} 28... Qxg5 {[%clk 0:01:23.1]} 29. Ra4 {[%clk 0:01:53.8]}
29... Qh5+ {[%clk 0:01:20.3]} 30. Kg1 {[%clk 0:01:51.1]} 30... Nxf3+ {[%clk
0:01:21.1]} 31. Qxf3 {[%clk 0:01:52.4]} 31... Qxf3 {[%clk 0:01:21.8]} 0-1

[Event "*** Titled Tuesday Blitz"]
[Site "Chess.com"]
[Date "2018.11.06"]
[Round "4"]
[White "1random"]
[Black "tactics321"]
[Result "1-0"]
[WhiteElo "2487"]
[BlackElo "2333"]
[TimeControl "180+2"]
[EndTime "13:50:03 PST"]
[Termination "1random won by resignation"]

1. e4 {[%clk 0:03:01.9]} 1... c5 {[%clk 0:02:56.2]} 2. Nf3 {[%clk 0:03:00.5]}
2... Nc6 {[%clk 0:02:55.3]} 3. c3 {[%clk 0:03:01.1]} 3... Nf6 {[%clk 0:02:56]}
4. e5 {[%clk 0:02:59.6]} 4... Nd5 {[%clk 0:02:57.7]} 5. d4 {[%clk 0:03:00.5]}
5... cxd4 {[%clk 0:02:59.4]} 6. Bc4 {[%clk 0:03:01.7]} 6... Nb6 {[%clk 0:03:01]}
7. Bb3 {[%clk 0:03:03.3]} 7... g6 {[%clk 0:03:00.8]} 8. Ng5 {[%clk 0:02:53.8]}
8... d5 {[%clk 0:03:01.6]} 9. exd6 {[%clk 0:02:52.3]} 9... e6 {[%clk 0:03:02.7]}
10. O-O {[%clk 0:02:48.6]} 10... Qxd6 {[%clk 0:02:58.1]} 11. Qf3 {[%clk
0:02:46.2]} 11... Qe7 {[%clk 0:02:36.4]} 12. Ne4 {[%clk 0:02:16.9]} 12... f5
{[%clk 0:02:35.7]} 13. Ng5 {[%clk 0:02:18.2]} 13... Bg7 {[%clk 0:02:16]} 14. Re1
{[%clk 0:02:16.1]} 14... Ne5 {[%clk 0:02:15.9]} 15. Qg3 {[%clk 0:02:01.6]} 15...
h6 {[%clk 0:01:54.4]} 16. Rxe5 {[%clk 0:01:04.8]} 16... hxg5 {[%clk 0:01:53.2]}
17. Bxg5 {[%clk 0:01:05.5]} 17... Qf7 {[%clk 0:01:07.5]} 18. cxd4 {[%clk
0:01:05.8]} 18... Bxe5 {[%clk 0:01:06.3]} 19. Qxe5 {[%clk 0:01:06.5]} 19... O-O
{[%clk 0:01:05.1]} 20. Nc3 {[%clk 0:01:00.4]} 20... Rd8 {[%clk 0:01:04.4]} 21.
Bxd8 {[%clk 0:00:59.7]} 1-0

[Event "*** Titled Tuesday Blitz"]
[Site "Chess.com"]
[Date "2018.11.06"]
[Round "4"]
[White "Alopekos"]
[Black "PowerThinking2650"]
[Result "1-0"]
[WhiteElo "2478"]
[BlackElo "2300"]
[TimeControl "180+2"]
[EndTime "13:50:09 PST"]
[Termination "Alopekos won by resignation"]

1. e4 {[%clk 0:03:01.9]} 1... e5 {[%clk 0:03:00]} 2. Nf3 {[%clk 0:03:02.7]} 2...
Nc6 {[%clk 0:02:58]} 3. Bb5 {[%clk 0:02:57.3]} 3... a6 {[%clk 0:02:58.1]} 4. Ba4
{[%clk 0:02:57.4]} 4... Nf6 {[%clk 0:02:57.8]} 5. O-O {[%clk 0:02:58.2]} 5...
Be7 {[%clk 0:02:58.2]} 6. Re1 {[%clk 0:02:59.1]} 6... b5 {[%clk 0:02:59.1]} 7.
Bb3 {[%clk 0:03:00.4]} 7... d6 {[%clk 0:03:00.7]} 8. a4 {[%clk 0:03:00.9]} 8...
Bb7 {[%clk 0:02:59.2]} 9. axb5 {[%clk 0:03:02]} 9... axb5 {[%clk 0:02:59.9]} 10.
Rxa8 {[%clk 0:03:03.9]} 10... Qxa8 {[%clk 0:02:58.7]} 11. Nc3 {[%clk 0:03:05]}
11... b4 {[%clk 0:02:56.6]} 12. Nd5 {[%clk 0:03:06.4]} 12... Nxd5 {[%clk
0:02:57.6]} 13. exd5 {[%clk 0:03:08.3]} 13... Na5 {[%clk 0:02:55]} 14. Ba4+
{[%clk 0:03:04.2]} 14... c6 {[%clk 0:02:51]} 15. d4 {[%clk 0:03:00.6]} 15... O-O
{[%clk 0:02:40.5]} 16. dxe5 {[%clk 0:02:56.7]} 16... cxd5 {[%clk 0:02:40.7]} 17.
e6 {[%clk 0:02:29]} 17... d4 {[%clk 0:01:49.2]} 18. exf7+ {[%clk 0:02:17.4]}
18... Rxf7 {[%clk 0:01:48.7]} 19. Ng5 {[%clk 0:02:03.7]} 19... Bxg2 {[%clk
0:01:20.1]} 20. Nxf7 {[%clk 0:01:55.8]} 20... Bh1 {[%clk 0:01:15]} 21. Nh6+
{[%clk 0:01:06.1]} 21... gxh6 {[%clk 0:01:11.8]} 22. Qg4+ {[%clk 0:01:06.5]}
22... Bg5 {[%clk 0:01:09.9]} 23. Re8+ {[%clk 0:01:03.3]} 1-0

[Event "*** Titled Tuesday Blitz"]
[Site "Chess.com"]
[Date "2018.11.06"]
[Round "4"]
[White "albi1999"]
[Black "Caterpiller35"]
[Result "1-0"]
[WhiteElo "2452"]
[BlackElo "2279"]
[TimeControl "180+2"]
[EndTime "13:50:40 PST"]
[Termination "albi1999 won by resignation"]

1. d4 {[%clk 0:03:01.9]} 1... Nf6 {[%clk 0:00:07.6]} 2. c4 {[%clk 0:03:01.3]}
2... e6 {[%clk 0:00:08.9]} 3. g3 {[%clk 0:03:02.4]} 3... Bb4+ {[%clk 0:00:09.9]}
4. Bd2 {[%clk 0:03:02.9]} 4... a5 {[%clk 0:00:11.2]} 5. Bg2 {[%clk 0:03:03.1]}
5... O-O {[%clk 0:00:12]} 6. Nf3 {[%clk 0:03:03.6]} 6... Bxd2+ {[%clk
0:00:13.2]} 7. Qxd2 {[%clk 0:03:04.3]} 7... d6 {[%clk 0:00:15.1]} 8. Nc3 {[%clk
0:03:04.9]} 8... Nc6 {[%clk 0:00:16.9]} 9. O-O {[%clk 0:03:05.9]} 9... e5 {[%clk
0:00:18.2]} 10. h3 {[%clk 0:03:03.4]} 10... Bf5 {[%clk 0:00:17.5]} 11. Rfe1
{[%clk 0:03:01.5]} 11... exd4 {[%clk 0:00:18]} 12. Nxd4 {[%clk 0:03:01.9]} 12...
Nxd4 {[%clk 0:00:18.9]} 13. Qxd4 {[%clk 0:03:03.8]} 13... Re8 {[%clk 0:00:18.9]}
14. b3 {[%clk 0:03:01.3]} 14... b6 {[%clk 0:00:19]} 15. Bxa8 {[%clk 0:02:54.6]}
15... Qxa8 {[%clk 0:00:20.9]} 16. Kh2 {[%clk 0:02:55.6]} 16... Bg6 {[%clk
0:00:20.4]} 17. Nd5 {[%clk 0:02:51.4]} 17... Nxd5 {[%clk 0:00:20.3]} 18. cxd5
{[%clk 0:02:53.3]} 18... Re4 {[%clk 0:00:21.1]} 19. Qd2 {[%clk 0:02:51.8]} 19...
h5 {[%clk 0:00:20.5]} 20. f3 {[%clk 0:02:52.7]} 20... Re5 {[%clk 0:00:20.9]} 21.
e4 {[%clk 0:02:54]} 21... h4 {[%clk 0:00:22]} 22. g4 {[%clk 0:02:55.4]} 22...
Qd8 {[%clk 0:00:20.6]} 23. Qf4 {[%clk 0:02:54.7]} 23... Qe7 {[%clk 0:00:21.2]}
24. Rac1 {[%clk 0:02:53.9]} 24... f6 {[%clk 0:00:21.5]} 25. Kg2 {[%clk
0:02:53.6]} 25... Be8 {[%clk 0:00:21.2]} 26. Kf2 {[%clk 0:02:54]} 26... g5
{[%clk 0:00:22.1]} 27. Qd2 {[%clk 0:02:53.4]} 27... Kg7 {[%clk 0:00:23.1]} 28.
Qc3 {[%clk 0:02:54.5]} 28... Bf7 {[%clk 0:00:23.2]} 29. Qxc7 {[%clk 0:02:54.8]}
29... Qe8 {[%clk 0:00:24.5]} 30. Qc6 {[%clk 0:02:53.4]} 30... Qe7 {[%clk
0:00:24]} 31. Qxb6 {[%clk 0:02:54.4]} 31... f5 {[%clk 0:00:25.1]} 32. exf5
{[%clk 0:02:51.3]} 32... Qf6 {[%clk 0:00:25.5]} 33. Qxa5 {[%clk 0:02:42.6]}
33... Rxe1 {[%clk 0:00:25.6]} 34. Qxe1 {[%clk 0:02:34.3]} 34... Qb2+ {[%clk
0:00:26]} 35. Kg1 {[%clk 0:02:33.5]} 35... Bxd5 {[%clk 0:00:26.9]} 36. Qc3+
{[%clk 0:02:34]} 36... Qxc3 {[%clk 0:00:27.4]} 37. Rxc3 {[%clk 0:02:35.9]} 1-0

[Event "*** Titled Tuesday Blitz"]
[Site "Chess.com"]
[Date "2018.11.06"]
[Round "4"]
[White "xavielhumilde_1999"]
[Black "mc4chess"]
[Result "1-0"]
[WhiteElo "2301"]
[BlackElo "2483"]
[TimeControl "180+2"]
[EndTime "13:50:42 PST"]
[Termination "xavielhumilde_1999 won by resignation"]

1. e4 {[%clk 0:02:55.3]} 1... c5 {[%clk 0:03:00.8]} 2. Nf3 {[%clk 0:02:56.4]}
2... e6 {[%clk 0:03:02.2]} 3. d4 {[%clk 0:02:56.8]} 3... cxd4 {[%clk 0:03:04.1]}
4. Nxd4 {[%clk 0:02:58.2]} 4... a6 {[%clk 0:03:05.8]} 5. c4 {[%clk 0:02:56.9]}
5... Qc7 {[%clk 0:03:07]} 6. Nc3 {[%clk 0:02:55]} 6... Nf6 {[%clk 0:03:08.6]} 7.
Be2 {[%clk 0:02:48.4]} 7... Bb4 {[%clk 0:03:05.7]} 8. O-O {[%clk 0:02:39.1]}
8... Bxc3 {[%clk 0:03:06]} 9. bxc3 {[%clk 0:02:39.8]} 9... Nxe4 {[%clk
0:03:07.7]} 10. Bf3 {[%clk 0:02:37.8]} 10... Nc5 {[%clk 0:02:41.1]} 11. Nb3
{[%clk 0:02:37.4]} 11... O-O {[%clk 0:02:37.1]} 12. Nxc5 {[%clk 0:02:31.6]}
12... Qxc5 {[%clk 0:02:36.7]} 13. Qb3 {[%clk 0:02:33.1]} 13... Qc7 {[%clk
0:02:30.6]} 14. Rd1 {[%clk 0:02:31.2]} 14... d6 {[%clk 0:02:25.4]} 15. Ba3
{[%clk 0:02:23.9]} 15... Rd8 {[%clk 0:02:25.9]} 16. Rxd6 {[%clk 0:02:19]} 16...
Rxd6 {[%clk 0:02:23.6]} 17. Bxd6 {[%clk 0:02:20.2]} 17... Qxd6 {[%clk
0:02:24.9]} 18. Bxb7 {[%clk 0:02:21.7]} 18... Bxb7 {[%clk 0:02:25.9]} 19. Qxb7
{[%clk 0:02:20.7]} 19... Qc6 {[%clk 0:02:26.7]} 20. Rd1 {[%clk 0:02:15.7]} 20...
g6 {[%clk 0:00:31.3]} 21. Rd8+ {[%clk 0:02:11.2]} 21... Kg7 {[%clk 0:00:32.5]}
22. Qxc6 {[%clk 0:02:12.6]} 22... Nxc6 {[%clk 0:00:32.9]} 23. Rxa8 {[%clk
0:02:14.2]} 23... Ne5 {[%clk 0:00:31.4]} 24. Rxa6 {[%clk 0:02:15.1]} 24... Nxc4
{[%clk 0:00:32]} 25. g3 {[%clk 0:02:15.5]} 25... Kf6 {[%clk 0:00:32.7]} 26. Kg2
{[%clk 0:02:15.7]} 26... Ke5 {[%clk 0:00:31.6]} 27. Rc6 {[%clk 0:02:15.5]} 27...
Kd5 {[%clk 0:00:32.2]} 28. Rxc4 {[%clk 0:02:14.6]} 28... Kxc4 {[%clk 0:00:32.6]}
29. a4 {[%clk 0:02:16]} 29... Kc5 {[%clk 0:00:30.9]} 30. Kf3 {[%clk 0:02:11.3]}
30... Kb6 {[%clk 0:00:28.9]} 31. c4 {[%clk 0:02:00.7]} 31... f6 {[%clk
0:00:23.2]} 32. Ke4 {[%clk 0:01:58.5]} 32... h5 {[%clk 0:00:23]} 33. Kd4 {[%clk
0:01:57.2]} 1-0

[Event "*** Titled Tuesday Blitz"]
[Site "Chess.com"]
[Date "2018.11.06"]
[Round "4"]
[White "JonahWillow"]
[Black "Gareth-Bale11"]
[Result "1-0"]
[WhiteElo "2703"]
[BlackElo "2601"]
[TimeControl "180+2"]
[EndTime "13:50:45 PST"]
[Termination "JonahWillow won by resignation"]

1. e4 {[%clk 0:03:01.9]} 1... e5 {[%clk 0:02:44.6]} 2. Nf3 {[%clk 0:03:02.5]}
2... Nc6 {[%clk 0:02:45.6]} 3. Nc3 {[%clk 0:03:04]} 3... Nf6 {[%clk 0:02:46]} 4.
Bb5 {[%clk 0:03:05.6]} 4... Bd6 {[%clk 0:02:27.7]} 5. d3 {[%clk 0:03:04]} 5...
O-O {[%clk 0:02:28]} 6. a3 {[%clk 0:03:04.8]} 6... a6 {[%clk 0:02:27.9]} 7. Bc4
{[%clk 0:03:01.9]} 7... h6 {[%clk 0:02:27.1]} 8. g4 {[%clk 0:03:00.9]} 8... b5
{[%clk 0:02:13.9]} 9. Bb3 {[%clk 0:02:57.2]} 9... Bc5 {[%clk 0:02:06.8]} 10. Rg1
{[%clk 0:02:52.5]} 10... d6 {[%clk 0:01:59.8]} 11. h3 {[%clk 0:02:47.4]} 11...
Be6 {[%clk 0:02:00.3]} 12. g5 {[%clk 0:02:40]} 12... hxg5 {[%clk 0:01:48.6]} 13.
Bxg5 {[%clk 0:02:41.9]} 13... Re8 {[%clk 0:01:33.6]} 14. Nd5 {[%clk 0:02:36.5]}
14... Kf8 {[%clk 0:01:23.4]} 15. Qd2 {[%clk 0:02:19.5]} 15... Bxd5 {[%clk
0:00:59.7]} 16. Bxd5 {[%clk 0:02:13.9]} 16... Qd7 {[%clk 0:00:59.1]} 17. Bxf6
{[%clk 0:02:09.3]} 17... gxf6 {[%clk 0:00:58.5]} 18. Qh6+ {[%clk 0:02:08.1]}
18... Ke7 {[%clk 0:00:59.9]} 19. Rg7 {[%clk 0:02:08.4]} 19... Rf8 {[%clk
0:00:58.7]} 20. Nh4 {[%clk 0:01:57]} 20... Nd4 {[%clk 0:00:31.8]} 21. Ng6+
{[%clk 0:01:50]} 21... Kd8 {[%clk 0:00:14.9]} 22. Nxf8 {[%clk 0:01:50.8]} 22...
Qe8 {[%clk 0:00:15.9]} 23. Qxf6+ {[%clk 0:01:44.9]} 23... Kc8 {[%clk 0:00:16.8]}
24. O-O-O {[%clk 0:01:36.3]} 24... c6 {[%clk 0:00:16.9]} 25. Bxf7 {[%clk
0:01:35.5]} 25... Ne2+ {[%clk 0:00:17.6]} 26. Kb1 {[%clk 0:01:36.1]} 26... Qd8
{[%clk 0:00:18.3]} 27. Be6+ {[%clk 0:01:35.9]} 1-0

[Event "*** Titled Tuesday Blitz"]
[Site "Chess.com"]
[Date "2018.11.06"]
[Round "4"]
[White "GukeshDommaraju"]
[Black "DanielNaroditsky"]
[Result "1-0"]
[WhiteElo "2668"]
[BlackElo "2965"]
[TimeControl "180+2"]
[EndTime "13:50:48 PST"]
[Termination "GukeshDommaraju won by resignation"]

1. Nf3 {[%clk 0:03:01.9]} 1... d5 {[%clk 0:03:00.7]} 2. g3 {[%clk 0:03:02.7]}
2... g6 {[%clk 0:03:01.7]} 3. Bg2 {[%clk 0:03:03.4]} 3... Bg7 {[%clk 0:03:03.4]}
4. d4 {[%clk 0:03:04.2]} 4... Nf6 {[%clk 0:03:04.7]} 5. O-O {[%clk 0:03:04.7]}
5... O-O {[%clk 0:03:06.4]} 6. c4 {[%clk 0:03:05.7]} 6... dxc4 {[%clk
0:03:08.3]} 7. Na3 {[%clk 0:03:06.4]} 7... c3 {[%clk 0:03:10]} 8. bxc3 {[%clk
0:03:07.8]} 8... c5 {[%clk 0:03:11.9]} 9. Re1 {[%clk 0:03:08.7]} 9... Nc6 {[%clk
0:03:04]} 10. e4 {[%clk 0:03:07.7]} 10... Bg4 {[%clk 0:02:56.2]} 11. Bb2 {[%clk
0:03:03.7]} 11... Qb6 {[%clk 0:02:49]} 12. Rb1 {[%clk 0:02:58.2]} 12... Rad8
{[%clk 0:02:43.4]} 13. d5 {[%clk 0:02:47.5]} 13... Ne5 {[%clk 0:02:12.6]} 14. c4
{[%clk 0:02:40.5]} 14... Nxf3+ {[%clk 0:02:13.9]} 15. Bxf3 {[%clk 0:02:40.9]}
15... Bxf3 {[%clk 0:02:15.8]} 16. Qxf3 {[%clk 0:02:41.5]} 16... Qa6 {[%clk
0:02:09.2]} 17. e5 {[%clk 0:02:33.1]} 17... Nd7 {[%clk 0:02:09]} 18. Qb3 {[%clk
0:02:33.7]} 18... Nb6 {[%clk 0:02:02.5]} 19. Nb5 {[%clk 0:02:33.6]} 19... Rc8
{[%clk 0:01:58.6]} 20. e6 {[%clk 0:02:24.7]} 20... fxe6 {[%clk 0:01:28.9]} 21.
Bxg7 {[%clk 0:02:16.1]} 21... Kxg7 {[%clk 0:01:30.8]} 22. Rxe6 {[%clk
0:02:16.9]} 22... Rf7 {[%clk 0:01:32.4]} 23. d6 {[%clk 0:01:52.9]} 23... Qa5
{[%clk 0:01:23.5]} 24. Qb2+ {[%clk 0:01:33.4]} 24... Kh6 {[%clk 0:01:17.3]} 25.
dxe7 {[%clk 0:01:31.2]} 25... Re8 {[%clk 0:01:17.9]} 26. Nd6 {[%clk 0:01:27.5]}
26... Rexe7 {[%clk 0:01:19.4]} 27. Rxe7 {[%clk 0:01:18.7]} 27... Rxe7 {[%clk
0:01:19.5]} 28. Nf5+ {[%clk 0:01:17]} 28... gxf5 {[%clk 0:01:18.3]} 29. Qf6+
{[%clk 0:01:17.4]} 29... Kh5 {[%clk 0:01:20.2]} 30. Qxf5+ {[%clk 0:01:13.3]}
30... Kh6 {[%clk 0:01:21]} 31. Qf6+ {[%clk 0:01:13.8]} 31... Kh5 {[%clk
0:01:22.9]} 32. h3 {[%clk 0:01:06.8]} 32... Re4 {[%clk 0:01:20.8]} 33. g4+
{[%clk 0:01:06]} 33... Rxg4+ {[%clk 0:01:21.8]} 34. hxg4+ {[%clk 0:01:07]} 34...
Kxg4 {[%clk 0:01:23.7]} 35. Kh2 {[%clk 0:01:06.3]} 35... Qd2 {[%clk 0:01:23.7]}
36. Rg1+ {[%clk 0:01:05.9]} 36... Kh5 {[%clk 0:01:25.2]} 37. Qf5+ {[%clk
0:01:06]} 1-0

[Event "*** Titled Tuesday Blitz"]
[Site "Chess.com"]
[Date "2018.11.06"]
[Round "4"]
[White "Quiet_Desperation"]
[Black "EphiphanyLord"]
[Result "0-1"]
[WhiteElo "2334"]
[BlackElo "2577"]
[TimeControl "180+2"]
[EndTime "13:50:54 PST"]
[Termination "EphiphanyLord won by resignation"]

1. e4 {[%clk 0:03:01.9]} 1... e5 {[%clk 0:02:58.7]} 2. Nf3 {[%clk 0:03:02.8]}
2... Nc6 {[%clk 0:03:00.2]} 3. Bc4 {[%clk 0:03:04.4]} 3... Bc5 {[%clk
0:03:00.5]} 4. b4 {[%clk 0:03:05.4]} 4... Bxb4 {[%clk 0:02:57.4]} 5. c3 {[%clk
0:03:06.5]} 5... Be7 {[%clk 0:02:57.9]} 6. d4 {[%clk 0:03:06.6]} 6... Na5 {[%clk
0:02:55]} 7. Nxe5 {[%clk 0:03:07.7]} 7... Nxc4 {[%clk 0:02:56.2]} 8. Nxc4 {[%clk
0:03:08.9]} 8... d5 {[%clk 0:02:57.9]} 9. exd5 {[%clk 0:03:10.8]} 9... Qxd5
{[%clk 0:02:59.2]} 10. Ne3 {[%clk 0:03:12.5]} 10... Qd8 {[%clk 0:02:59.5]} 11.
O-O {[%clk 0:03:14.2]} 11... Nf6 {[%clk 0:03:01]} 12. c4 {[%clk 0:03:15.3]}
12... c6 {[%clk 0:03:00.1]} 13. Bb2 {[%clk 0:03:16.2]} 13... O-O {[%clk
0:03:01.6]} 14. Nc3 {[%clk 0:03:15.8]} 14... Re8 {[%clk 0:02:51.1]} 15. d5
{[%clk 0:03:16.9]} 15... Bc5 {[%clk 0:02:44.7]} 16. Qf3 {[%clk 0:03:09.4]} 16...
Bxe3 {[%clk 0:02:28.9]} 17. fxe3 {[%clk 0:03:10.4]} 17... Qb6 {[%clk 0:02:28.7]}
18. Rab1 {[%clk 0:03:10]} 18... Bg4 {[%clk 0:02:16.9]} 19. Qg3 {[%clk
0:03:04.1]} 19... Qxe3+ {[%clk 0:02:10.3]} 20. Qxe3 {[%clk 0:03:04.1]} 20...
Rxe3 {[%clk 0:02:12.2]} 21. d6 {[%clk 0:02:54.8]} 21... Rd3 {[%clk 0:02:03.2]}
22. c5 {[%clk 0:02:55.9]} 22... b6 {[%clk 0:01:57.7]} 23. Rxf6 {[%clk
0:02:56.8]} 23... gxf6 {[%clk 0:01:54.6]} 24. Ne4 {[%clk 0:02:58.1]} 24... Bf5
{[%clk 0:01:28.6]} 25. Nxf6+ {[%clk 0:02:57.7]} 25... Kf8 {[%clk 0:01:29.7]} 26.
Rf1 {[%clk 0:02:26.7]} 26... Bg6 {[%clk 0:01:21.3]} 27. h4 {[%clk 0:02:23.6]}
27... h5 {[%clk 0:01:16.8]} 28. Nd7+ {[%clk 0:02:23.2]} 28... Ke8 {[%clk
0:01:13.7]} 29. Ne5 {[%clk 0:02:24.3]} 29... Rd2 {[%clk 0:00:59.6]} 30. Bc3
{[%clk 0:02:15.5]} 30... Rc2 {[%clk 0:01:00.9]} 31. d7+ {[%clk 0:02:15.4]} 31...
Ke7 {[%clk 0:01:02.5]} 32. Bd4 {[%clk 0:02:07.2]} 32... Be4 {[%clk 0:01:00.8]}
33. Rxf7+ {[%clk 0:02:06.6]} 33... Ke6 {[%clk 0:01:02.4]} 34. Rg7 {[%clk
0:01:54.3]} 34... bxc5 {[%clk 0:00:58.1]} 35. Nf7 {[%clk 0:01:29.9]} 35... cxd4
{[%clk 0:00:59.2]} 36. d8=Q {[%clk 0:01:30.5]} 36... Rxd8 {[%clk 0:01:00.5]} 37.
Nxd8+ {[%clk 0:01:32.4]} 37... Kf6 {[%clk 0:01:01.9]} 0-1

[Event "*** Titled Tuesday Blitz"]
[Site "Chess.com"]
[Date "2018.11.06"]
[Round "4"]
[White "kharov2001"]
[Black "BjarkeSahl"]
[Result "0-1"]
[WhiteElo "2215"]
[BlackElo "2170"]
[TimeControl "180+2"]
[EndTime "13:50:58 PST"]
[Termination "BjarkeSahl won by resignation"]

1. e4 {[%clk 0:03:00.8]} 1... c5 {[%clk 0:03:00.2]} 2. Nf3 {[%clk 0:03:01.7]}
2... Nc6 {[%clk 0:03:01.4]} 3. Bb5 {[%clk 0:03:01.9]} 3... g6 {[%clk 0:02:52.5]}
4. Bxc6 {[%clk 0:03:02.3]} 4... dxc6 {[%clk 0:02:48]} 5. d3 {[%clk 0:03:02]}
5... c4 {[%clk 0:02:41.9]} 6. dxc4 {[%clk 0:02:58]} 6... Qxd1+ {[%clk
0:02:40.2]} 7. Kxd1 {[%clk 0:02:59.9]} 7... Bg7 {[%clk 0:02:41.7]} 8. c3 {[%clk
0:03:00]} 8... Be6 {[%clk 0:02:41.3]} 9. b3 {[%clk 0:03:00.4]} 9... Nf6 {[%clk
0:02:35.2]} 10. Nbd2 {[%clk 0:02:47.8]} 10... Ng4 {[%clk 0:02:23]} 11. Kc2
{[%clk 0:02:27.6]} 11... Nxf2 {[%clk 0:02:20.7]} 12. Rf1 {[%clk 0:02:28.1]}
12... Ng4 {[%clk 0:02:21.5]} 13. Re1 {[%clk 0:01:55.9]} 13... O-O-O {[%clk
0:02:01.2]} 14. Ng5 {[%clk 0:01:53.8]} 14... Nxh2 {[%clk 0:01:56.8]} 15. Nxe6
{[%clk 0:01:55.1]} 15... fxe6 {[%clk 0:01:57.5]} 16. Ba3 {[%clk 0:01:46.5]}
16... Rd7 {[%clk 0:01:50.8]} 17. Rh1 {[%clk 0:01:28.7]} 17... Ng4 {[%clk
0:01:50.2]} 18. Nf3 {[%clk 0:01:23.7]} 18... h5 {[%clk 0:01:36.2]} 19. Rae1
{[%clk 0:01:21.8]} 19... Rhd8 {[%clk 0:01:22.6]} 20. Re2 {[%clk 0:01:20.5]}
20... e5 {[%clk 0:01:19.9]} 21. Ng5 {[%clk 0:01:19.5]} 21... Bf6 {[%clk
0:01:15.2]} 22. Ne6 {[%clk 0:01:16.4]} 22... Rg8 {[%clk 0:01:16]} 23. Rb1 {[%clk
0:01:02.6]} 23... b6 {[%clk 0:00:58.2]} 24. Rd1 {[%clk 0:00:53.4]} 24... Rxd1
{[%clk 0:00:57.5]} 25. Kxd1 {[%clk 0:00:54.1]} 25... Kd7 {[%clk 0:00:58.9]} 0-1